bitfinex-derivatives/quotes_ETHF0:USTF0_20241231
["timestamp","ask_amount","ask_price","bid_price","bid_amount"]
[1735648054061,0.29395,3407.2,3406.8,1.16]
[1735648054371,2.657,3407.1,3406.8,1.16]
[1735648054567,3.9271,3407.1,3406.9,41.09397]
[1735648054964,3.9271,3407.1,3406.9,40.8]
[1735648055160,3.9271,3407.1,3407.0,0.29396]
[1735648055570,5.18573906,3407.0,3406.9,41.09397]
[1735648059674,5.18573906,3407.0,3406.9,42.43207]
[1735648061573,3.3009086,3407.0,3406.9,42.43207]
[1735648061769,3.64795119,3407.3,3407.2,0.29395]
[1735648061969,3.64795119,3407.3,3407.2,5.85485199]
[1735648063369,3.45863629,3407.3,3407.2,5.79474169]
[1735648063570,3.45863629,3407.3,3407.2,6.08869169]
[1735648066674,3.94341505,3407.5,3407.2,5.79474169]
[1735648066976,0.01486064,3407.5,3407.4,0.29393]
[1735648067172,5.76439381,3407.6,3407.5,0.29392]
[1735648067371,5.76439381,3407.6,3407.5,43.44702199]
[1735648068978,5.76439381,3408.1,3408.0,0.29388]
[1735648069182,8.08459822,3408.7,3408.0,1.16]
[1735648069474,8.83542023,3408.9,3408.8,0.29381]
[1735648069678,8.03994713,3408.9,3408.8,42.25381]
[1735648069874,7.53994713,3408.9,3408.8,42.25381]
[1735648070174,6.45084713,3408.9,3408.8,42.25381]
[1735648070370,5.94267077,3408.9,3408.8,42.25381]
[1735648070576,5.44267077,3408.9,3408.8,42.25381]
[1735648070775,2.5744,3409.7,3409.6,0.29374]
[1735648070970,2.5744,3409.7,3409.6,1.45374]
[1735648071173,3.2078,3409.8,3409.6,1.16]
[1735648071379,10.3859595,3410.1,3410.0,0.2937]
[1735648071579,10.3859595,3410.1,3409.6,1.16]
[1735648071580,10.3859595,3410.1,3409.9,0.29371]
[1735648071781,10.3859595,3410.1,3409.7,1.249]
[1735648071977,10.3859595,3410.1,3410.0,40.8]
[1735648072178,5.78,3410.2,3410.0,40.8]
[1735648072384,5.78,3410.2,3410.0,41.0937]
[1735648073079,5.78,3410.2,3410.0,40.8]
[1735648073774,5.78,3410.2,3409.7,1.249]
[1735648073775,5.78,3410.2,3409.7,0.29373]
[1735648074177,5.78,3410.2,3409.9,0.29371]
[1735648074681,2.35310199,3410.7,3409.6,41.96]
[1735648074682,3.2078,3410.7,3409.8,2.35310199]
[1735648075179,1.3649,3410.6,3410.0,0.2937]
[1735648075579,1.3649,3410.6,3410.1,0.2937]
[1735648075776,4.99660199,3410.6,3409.7,3.2078]
[1735648075980,3.2078,3410.3,3409.8,1.48672]
[1735648076185,1.2519,3410.2,3409.8,1.48672]
[1735648076375,1.2519,3410.2,3409.9,0.29371]
[1735648076581,1.2519,3410.2,3409.8,1.193]
[1735648076781,1.2519,3410.2,3409.8,1.48672]
[1735648077387,1.2519,3410.2,3409.9,0.29371]
[1735648077583,1.2519,3410.2,3410.0,1.193]
[1735648079391,1.2519,3410.2,3410.1,0.2937]
[1735648079793,1.29006593,3410.2,3410.0,1.4867]
[1735648079997,1.29006593,3410.2,3410.1,0.2937]
[1735648080395,1.32823183,3410.2,3410.1,0.2937]
[1735648080795,1.32823183,3410.2,3410.0,1.193]
[1735648080996,0.11449773,3410.1,3410.0,1.4867]
[1735648081395,0.15266363,3410.1,3410.0,1.193]
[1735648081596,0.15266363,3410.1,3410.0,1.4867]
[1735648082997,0.15266363,3410.1,3410.0,1.193]
[1735648083404,0.15266363,3410.1,3410.0,1.4867]
[1735648083601,0.15266363,3410.1,3410.0,1.193]
[1735648084107,0.15266363,3410.1,3409.8,1.193]
[1735648084306,0.15266363,3410.1,3410.0,0.2937]
[1735648084502,0.15266363,3410.1,3410.0,1.4867]
[1735648089303,0.19093125,3410.1,3410.0,1.193]
[1735648089604,0.19093125,3410.1,3410.0,1.4867]
[1735648090011,0.22919887,3410.1,3410.0,1.4867]
[1735648090609,0.26746646,3410.1,3410.0,1.4867]
[1735648091008,0.30573405,3410.1,3410.0,1.193]
[1735648091210,0.30573405,3410.1,3410.0,1.4867]
[1735648091608,0.34400167,3410.1,3410.0,1.193]
[1735648091808,0.34400167,3410.1,3410.0,1.4867]
[1735648092202,0.38226929,3410.1,3410.0,1.193]
[1735648092403,3.2078,3410.7,3410.0,6.193]
[1735648092611,3.2078,3410.7,3410.6,2.64675199]
[1735648092809,2.29032598,3410.9,3410.8,0.29364]
[1735648093013,0.03826759,3410.9,3410.8,42.28664]
[1735648093314,0.07653521,3410.9,3410.8,41.993]
[1735648093516,0.07653521,3410.9,3410.8,42.28664]
[1735648093920,0.1148028,3410.9,3410.8,41.993]
[1735648094223,0.1148028,3410.9,3410.8,42.28664]
[1735648094518,0.1148028,3410.9,3410.4,0.29367]
[1735648094519,0.44670042,3410.9,3410.4,0.29367]
[1735648094720,3.2078,3410.5,3410.4,0.29367]
[1735648095020,2.6567,3410.8,3410.3,2.35310199]
[1735648095214,0.18468469,3410.5,3410.3,2.35310199]
[1735648095414,0.18468469,3410.5,3410.4,0.29367]
[1735648096820,0.18468469,3410.5,3410.4,41.09367]
[1735648097923,3.68614469,3410.5,3410.4,40.8]
[1735648098121,3.39248469,3410.5,3410.4,41.993]
[1735648098415,3.39248469,3410.5,3410.4,42.28667]
[1735648098620,3.39248469,3410.5,3410.4,41.993]
[1735648099020,3.39248469,3410.5,3410.4,42.28667]
[1735648099429,3.39248469,3410.5,3410.4,1.48667]
[1735648100320,3.39248469,3410.5,3410.4,42.28667]
[1735648103012,3.39248469,3410.5,3410.4,41.993]
[1735648103218,3.68614469,3410.5,3410.4,41.993]
[1735648103418,3.39248469,3410.5,3410.1,1.193]
[1735648103821,3.39248469,3410.5,3410.1,1.48669]
[1735648103822,0.29367,3410.4,3410.1,1.48669]
[1735648104029,0.29367,3410.4,3410.2,40.8]
[1735648104326,0.18468469,3410.3,3410.2,40.8]
[1735648106121,0.18468469,3410.3,3410.2,41.09369]
[1735648106625,0.18468469,3410.3,3410.2,40.8]
[1735648106626,0.47836469,3410.3,3410.2,40.8]
[1735648106829,0.47837469,3410.3,3409.9,0.29371]
[1735648107127,0.18468469,3410.1,3409.9,0.29371]
[1735648107425,0.18468469,3410.1,3410.0,40.8]
[1735648108028,0.18468469,3410.1,3410.0,43.44680199]
[1735648108230,2.47501067,3410.1,3410.0,43.44680199]
[1735648109426,2.47501067,3410.1,3410.0,41.0937]
[1735648109726,0.18468469,3410.1,3410.0,41.0937]
[1735648111825,0.18468469,3410.1,3410.0,42.2807]
[1735648112632,0.62537005,3410.1,3410.0,42.2807]
[1735648112821,4.12687005,3410.1,3410.0,40.8]
[1735648113025,3.83317005,3410.1,3409.1,3.2078]
[1735648113227,0.18468469,3409.6,3409.1,4.3948]
[1735648113530,2.35310199,3410.0,3409.2,40.8]
[1735648113531,0.29374,3409.7,3409.2,40.8]
[1735648113731,1.3303,3409.5,3409.3,0.29376]
[1735648113927,0.8303,3409.5,3409.4,0.29376]
[1735648114327,5.6835934,3409.5,3409.4,0.29376]
[1735648114523,5.6835934,3409.5,3409.3,1.48076]
[1735648115435,4.8532934,3409.4,3409.3,1.48076]
[1735648115633,4.8532934,3409.4,3409.3,1.187]
[1735648115830,4.8532934,3409.4,3409.3,1.48076]
[1735648117336,4.8532934,3409.4,3409.3,1.187]
[1735648117532,4.8532934,3409.4,3409.3,1.48076]
[1735648117927,0.29376,3409.3,3409.2,40.8]
[1735648118335,0.29379,3409.0,3408.9,1.188]
[1735648118543,3.2078,3409.1,3408.7,1.188]
[1735648118735,3.2078,3409.1,3408.9,0.29379]
[1735648119432,3.2078,3409.1,3409.0,0.29379]
[1735648119835,0.44068536,3409.4,3408.8,44.51730199]
[1735648120037,0.44068536,3409.4,3409.3,0.29376]
[1735648120541,3.2078,3409.5,3409.4,0.29376]
[1735648120735,3.2078,3409.5,3409.4,1.48176]
[1735648120930,6.88521608,3409.7,3409.6,0.29374]
[1735648121145,6.88521608,3409.7,3409.6,41.09374]
[1735648122038,4.85646445,3409.7,3409.6,41.09374]
[1735648124446,4.60992994,3409.8,3409.6,40.8]
[1735648124638,4.60992994,3409.8,3409.7,0.29373]
[1735648125643,4.60992994,3409.8,3409.7,1.188]
[1735648125944,4.60992994,3409.8,3409.7,1.48173]
[1735648126245,4.60992994,3409.8,3409.7,1.188]
[1735648126443,4.60992994,3409.8,3409.7,1.48173]
[1735648127145,4.41548358,3409.8,3409.7,1.48173]
[1735648127846,4.41548358,3409.8,3409.7,1.188]
[1735648128050,7.62328358,3409.8,3409.7,1.188]
[1735648128248,3.50152,3409.8,3409.7,1.188]
[1735648128551,4.86162,3409.8,3409.7,1.188]
[1735648128954,4.5679,3409.8,3409.7,1.188]
[1735648129357,9.42412775,3409.8,3409.5,0.29096716]
[1735648129754,9.42412775,3409.8,3409.2,40.8]
[1735648129959,11.77722974,3409.8,3409.2,41.09377]
[1735648130258,0.29374,3409.6,3409.3,0.29376]
[1735648130558,1.3189,3409.5,3409.3,0.29376]
[1735648130758,1.3493,3409.4,3409.3,0.29376]
[1735648132680,11.96732553,3409.4,3409.3,0.29376]
[1735648132980,15.17512553,3409.4,3409.2,40.8]
[1735648133683,15.17512553,3409.4,3409.2,41.09377]
[1735648133884,15.17512553,3409.4,3409.2,40.8]
[1735648134090,4.85622775,3409.3,3408.7,3.2078]
[1735648134389,2.35310199,3409.2,3408.7,3.2078]
[1735648134579,0.2938,3409.0,3408.8,40.8]
[1735648134987,1.2998,3408.9,3408.8,40.8]
[1735648135571,1.2998,3408.9,3408.8,41.09381]
[1735648136182,6.15602775,3408.9,3408.8,41.09381]
[1735648137575,11.91407802,3408.9,3408.8,41.09381]
[1735648138563,11.91407802,3408.9,3408.8,42.51961]
[1735648139265,6.34532075,3408.9,3408.8,42.51961]
[1735648140264,5.90457658,3408.9,3408.8,42.51961]
[1735648140564,4.60477658,3408.9,3408.8,42.51961]
[1735648142068,4.10477658,3408.9,3408.8,42.51961]
[1735648142259,3.60947658,3408.9,3408.8,42.51961]
[1735648143264,3.10947658,3408.9,3408.8,42.51961]
[1735648143469,5.75805027,3409.1,3408.8,42.2258]
[1735648143470,2.30293427,3409.0,3408.8,42.2258]
[1735648143666,2.30293427,3409.0,3408.9,2.64690199]
[1735648144366,2.30293427,3409.0,3408.9,43.44690199]
[1735648145066,2.30293427,3409.2,3409.1,0.29378]
[1735648145266,2.30293427,3409.2,3409.1,3.50158]
[1735648145866,2.30293427,3409.2,3409.1,44.30158]
[1735648146056,3.89513684,3409.3,3409.1,45.60818]
[1735648146262,3.89513684,3409.3,3409.2,0.29377]
[1735648147760,0.44073543,3409.3,3409.2,0.29377]
[1735648148967,5.75805027,3409.3,3409.2,0.29377]
[1735648150669,10.57428727,3409.3,3409.2,0.29377]
[1735648151870,10.57428727,3409.3,3409.2,41.09377]
[1735648154471,10.57428727,3409.3,3409.2,43.44687199]
[1735648155363,0.44073543,3409.3,3409.2,43.44687199]
[1735648155861,1.4338,3409.4,3409.3,0.29377]
[1735648156664,11.57085066,3409.4,3409.3,0.29377]
[1735648158172,11.57085066,3409.4,3409.3,1.18]
[1735648158375,11.86461066,3409.4,3409.0,1.47378]
[1735648158569,1.4281,3409.3,3409.1,0.29378]
[1735648158877,1.311,3409.2,3409.1,0.29378]
[1735648159875,12.79984443,3409.3,3409.2,0.29377]
[1735648160680,1.4281,3409.3,3409.2,0.29377]
[1735648163176,5.79820086,3409.3,3409.2,0.29377]
[1735648164182,5.79820086,3409.3,3409.0,41.98]
[1735648165284,5.79820086,3409.3,3409.2,0.29377]
[1735648165678,5.79820086,3409.3,3409.2,1.46477]
[1735648167487,12.68341694,3409.3,3409.2,1.46477]
[1735648167682,12.68341694,3409.3,3409.2,0.29377]
[1735648168581,0.29378,3409.1,3409.0,40.8]
[1735648168880,20.3996385,3409.3,3408.7,4.67261]
[1735648169076,0.29379,3409.1,3408.9,0.2938]
[1735648169278,1.3281,3409.0,3408.9,41.0938]
[1735648169875,1.3281,3409.0,3408.9,0.2938]
[1735648170289,12.67999242,3409.0,3408.9,0.2938]
[1735648171283,5.69820086,3409.0,3408.9,0.2938]
[1735648171684,5.69820086,3409.0,3408.9,1.4648]
[1735648172586,1.3281,3409.0,3408.9,1.4648]
[1735648172782,1.3281,3409.0,3408.9,1.171]
[1735648172984,1.3281,3409.0,3408.7,40.8]
[1735648173185,1.3139,3408.9,3408.8,0.2938]
[1735648174291,5.68400086,3408.9,3408.8,0.2938]
[1735648176992,6.12483383,3408.9,3408.8,0.2938]
[1735648182211,6.12483383,3408.9,3408.8,0.29381]
[1735648184008,13.01004991,3408.9,3408.8,0.29381]
[1735648185607,6.12483383,3408.9,3408.8,0.29381]
[1735648187407,4.81093383,3408.9,3408.8,0.29381]
[1735648197505,11.77391502,3408.9,3408.8,0.29381]
[1735648197914,12.06771502,3408.9,3408.8,0.29381]
[1735648198214,11.77391502,3408.9,3408.8,0.29381]
[1735648198810,11.77391502,3408.9,3408.6,3.2078]
[1735648199013,11.77391502,3408.9,3408.8,0.29381]
[1735648202012,18.6591311,3408.9,3408.8,0.29381]
[1735648203617,0.44083297,3408.9,3408.8,0.29381]
[1735648204009,1.94533297,3408.9,3408.8,0.29381]
[1735648204819,13.27841502,3408.9,3408.8,0.29381]
[1735648206512,11.77391502,3408.9,3408.8,0.29381]
[1735648207818,11.77391502,3408.9,3408.8,1.84941]
[1735648208822,10.77471502,3408.9,3408.8,1.84941]
[1735648209920,3.81173383,3408.9,3408.8,1.84941]
[1735648210518,3.81173383,3408.9,3408.8,6.68981]
[1735648211527,6.88521608,3409.1,3409.0,0.29379]
[1735648211826,6.88521608,3409.1,3409.0,2.64689199]
[1735648212419,6.88521608,3409.1,3409.0,6.38259199]
[1735648212618,6.88521608,3409.1,3409.0,6.61719199]
[1735648213019,6.88521608,3409.2,3409.1,0.29378]
[1735648213320,6.88521608,3409.2,3409.1,1.72138]
[1735648213520,6.88521608,3409.2,3409.1,3.18298]
[1735648213821,6.88521608,3409.2,3409.1,1.161]
[1735648214128,9.91781608,3409.2,3409.1,1.161]
[1735648214517,3.0326,3409.2,3409.1,1.161]
[1735648215626,9.95060679,3409.2,3409.1,1.161]
[1735648217126,13.15840679,3409.2,3409.1,1.161]
[1735648219523,13.15840679,3409.2,3409.1,1.45481]
[1735648219922,17.46622403,3409.2,3409.1,1.45481]
[1735648220721,17.46622403,3409.2,3409.1,1.161]
[1735648220927,17.46622403,3409.2,3409.1,1.45481]
[1735648221127,17.46622403,3409.2,3409.1,1.161]
[1735648221632,17.46622403,3409.2,3409.1,1.45481]
[1735648222330,17.46622403,3409.2,3409.1,1.161]
[1735648223126,17.46622403,3409.2,3409.1,1.45481]
[1735648224622,25.55509201,3409.2,3409.1,1.45481]
[1735648225536,22.52249201,3409.2,3409.1,1.45481]
[1735648226133,22.52249201,3409.2,3409.1,2.98611]
[1735648226134,19.31469201,3409.2,3409.1,2.98611]
[1735648227239,18.15865351,3409.2,3409.1,4.49801]
[1735648227636,17.65865351,3409.2,3409.1,4.49801]
[1735648227932,17.65865351,3409.2,3409.1,45.29801]
[1735648228334,4.30781724,3409.2,3409.1,45.29801]
[1735648228738,4.30781724,3409.2,3409.1,47.35131]
[1735648229837,0.44077061,3409.2,3409.1,50.13791]
[1735648230039,0.44077061,3409.2,3409.1,50.37175777]
[1735648231139,4.74858785,3409.2,3409.1,50.37175777]
[1735648231531,4.24858785,3409.2,3409.1,50.37175777]
[1735648231933,4.24858785,3409.2,3409.1,50.60635777]
[1735648234036,4.24858785,3409.2,3409.1,53.81415777]
[1735648234542,4.24858785,3409.2,3409.1,53.81015777]
[1735648234838,10.02237195,3409.2,3409.1,53.81015777]
[1735648235643,10.02237195,3409.2,3409.1,54.04475777]
[1735648236047,4.24858785,3409.2,3409.1,54.04475777]
[1735648237348,1.5681,3409.5,3409.4,0.29379]
[1735648238444,8.41507264,3409.5,3409.4,0.29379]
[1735648240050,1.5681,3409.5,3409.4,0.29379]
[1735648242345,6.93282948,3409.6,3409.5,0.29378]
[1735648242645,6.93282948,3409.6,3409.5,0.58698]
[1735648242845,1.4385,3409.7,3409.6,0.29377]
[1735648243846,1.4385,3409.7,3409.6,1.45077]
[1735648244748,1.4385,3409.7,3409.6,2.96007]
[1735648244948,19.44905474,3409.7,3409.6,2.96007]
[1735648246140,5.7018446,3409.7,3409.6,2.96007]
[1735648246440,0.03558913,3409.7,3409.6,3.99405317]
[1735648246644,0.03558913,3409.7,3409.6,6.85965317]
[1735648246844,6.92585878,3409.8,3409.6,6.85965317]
[1735648246845,6.46144791,3409.8,3409.7,0.29376]
[1735648247854,4.61497587,3409.8,3409.7,0.29376]
[1735648248252,4.61497587,3409.8,3409.7,2.64546218]
[1735648248847,4.11497587,3409.8,3409.7,2.64546218]
[1735648249048,4.11497587,3409.8,3409.7,2.88006218]
[1735648249546,2.9779,3410.1,3409.7,2.58630218]
[1735648249747,3.2078,3409.9,3409.7,0.2346]
[1735648249951,3.2078,3409.9,3409.7,1.3916]
[1735648250454,3.2078,3409.9,3409.7,1.68536]
[1735648250648,6.93213615,3409.8,3409.7,0.31731686]
[1735648251947,6.93213615,3409.8,3409.7,0.55191686]
[1735648252350,6.93213615,3409.8,3409.7,2.90361904]
[1735648252550,0.44074467,3409.8,3409.7,2.90361904]
[1735648252849,1.5876,3410.2,3409.7,2.60985904]
[1735648253154,1.5876,3410.2,3410.1,2.64542218]
[1735648254150,7.35370741,3410.2,3410.1,2.64542218]
[1735648254855,7.35370741,3410.2,3410.1,2.87992218]
[1735648255560,1.5876,3410.2,3410.1,2.87992218]
[1735648258752,1.5876,3410.2,3410.1,3.17312218]
[1735648259453,1.5876,3410.2,3410.1,3.40539072]
[1735648259855,1.5876,3410.2,3410.1,6.19119072]
[1735648260056,9.60278425,3410.2,3410.1,2.9739]
[1735648260553,9.30906425,3410.2,3409.7,0.2346]
[1735648260761,3.50155,3409.8,3409.5,1.162]
[1735648260954,1.5284,3409.7,3409.5,1.45577]
[1735648261257,1.5284,3409.7,3409.6,0.30957]
[1735648261462,1.5284,3409.7,3409.6,0.54417]
[1735648261664,6.04206425,3409.7,3409.6,1.17477]
[1735648261859,6.04206425,3409.7,3409.6,2.13867]
[1735648262156,6.04206425,3409.7,3409.6,2.37327]
[1735648262657,4.51366425,3409.7,3409.6,2.37327]
[1735648264364,5.76153152,3409.9,3409.6,2.37327]
[1735648264565,5.76153152,3409.9,3409.8,0.29375]
[1735648265258,5.76153152,3409.9,3409.8,2.64545218]
[1735648265665,4.51366425,3409.9,3409.8,2.64545218]
[1735648265865,4.51366425,3409.9,3409.8,43.44545218]
[1735648266058,4.51366425,3409.9,3409.8,41.09375]
[1735648266661,4.51366425,3409.9,3409.6,2.0795]
[1735648266861,0.29375,3409.9,3409.6,2.37327]
[1735648267165,1.5691,3410.0,3409.7,0.29376]
[1735648267861,1.5691,3410.0,3409.9,0.29374]
[1735648268563,1.5691,3410.0,3409.6,42.8795]
[1735648268762,0.29375,3409.9,3409.6,43.17326]
[1735648268963,1.86284,3410.0,3409.7,0.29376]
[1735648269164,0.29374,3409.9,3409.7,0.29376]
[1735648269462,1.86284,3410.0,3409.7,0.29376]
[1735648269657,1.5691,3410.0,3409.6,2.0795]
[1735648269863,1.5691,3410.0,3409.7,0.29376]
[1735648270064,0.29374,3409.9,3409.7,0.29376]
[1735648270565,1.5691,3410.0,3409.6,2.0795]
[1735648270766,1.86284,3410.0,3409.8,0.29375]
[1735648271166,1.86284,3410.0,3409.9,0.29374]
[1735648271669,1.5691,3410.0,3409.6,2.0795]
[1735648271861,1.5691,3410.0,3409.9,0.29374]
[1735648272160,13.52923965,3410.0,3409.9,0.29374]
[1735648272762,11.31645965,3410.0,3409.9,0.29374]
[1735648272965,11.31645965,3410.0,3409.9,2.64544218]
[1735648272966,7.44516172,3410.0,3409.9,2.64544218]
[1735648273167,6.15205114,3410.0,3409.9,2.64544218]
[1735648273366,6.15205114,3410.0,3409.9,45.00864218]
[1735648273667,5.04074576,3410.0,3409.9,45.00864218]
[1735648273870,5.04074576,3410.0,3409.9,45.63884218]
[1735648274566,4.54074576,3410.0,3409.9,45.87344218]
[1735648274965,4.54074576,3410.0,3409.9,46.83294218]
[1735648275669,5.76528109,3410.3,3410.2,0.29372]
[1735648275870,5.76528109,3410.3,3410.2,1.45572]
[1735648277074,0.44069205,3410.3,3410.2,1.45572]
[1735648277373,0.44069205,3410.3,3410.2,3.80742218]
[1735648278370,7.3548359,3410.6,3410.5,0.29369]
[1735648279478,0.44069205,3410.6,3410.5,0.29369]
[1735648280178,0.44069205,3410.6,3410.5,2.64539218]
[1735648280583,0.44069205,3410.6,3410.5,2.66019218]
[1735648280785,0.44069205,3410.6,3410.5,43.15055165]
[1735648281388,0.44069205,3410.6,3410.5,43.44424165]
[1735648282079,6.91414385,3410.9,3410.5,43.44424165]
[1735648282286,6.91414385,3410.9,3410.8,2.64536218]
[1735648283387,6.91414385,3411.2,3410.8,2.64536218]
[1735648283579,6.91414385,3411.2,3411.1,0.29364]
[1735648286387,4.82305929,3411.2,3410.9,5.00833]
[1735648286583,4.82305929,3411.2,3411.1,0.29364]
[1735648287488,12.53970356,3411.2,3411.1,0.29364]
[1735648288889,4.82305929,3411.2,3411.1,0.29364]
[1735648289285,4.82305929,3411.2,3411.1,1.45264]
[1735648289784,4.82305929,3411.2,3411.1,1.68714]
[1735648290188,10.12194385,3411.3,3411.2,0.29363]
[1735648291387,14.94500314,3411.3,3411.2,0.52813]
[1735648292491,23.02641967,3411.3,3411.2,1.45263]
[1735648292688,23.02641967,3411.3,3411.2,1.46663]
[1735648292882,10.12194385,3411.3,3411.2,1.46663]
[1735648293579,10.12194385,3411.3,3411.2,1.93563]
[1735648293993,14.94500314,3411.3,3411.2,1.93563]
[1735648296278,10.45774616,3411.3,3411.2,1.93563]
[1735648296483,8.34957907,3411.3,3411.2,1.93563]
[1735648296685,8.87594434,3411.7,3411.2,9.2679]
[1735648296887,10.38878817,3412.4,3411.6,46.83000436]
[1735648297082,10.38878817,3412.4,3411.9,2.64527218]
[1735648297083,9.41226197,3412.0,3411.9,2.64527218]
[1735648297285,5.0755881,3412.4,3412.3,0.29354]
[1735648297484,1.42543386,3412.4,3412.3,5.85304218]
[1735648297684,1.42543386,3412.4,3412.3,7.01204218]
[1735648297888,1.42543386,3412.4,3412.3,2.64524218]
[1735648298089,1.42543386,3412.4,3412.3,3.80424218]
[1735648298486,1.42543386,3412.4,3412.3,44.60424218]
[1735648299394,3.44955039,3412.5,3412.3,45.25820218]
[1735648299686,3.44955039,3412.5,3412.4,2.64523218]
[1735648300593,3.44955039,3412.7,3412.3,42.9065]
[1735648300897,3.44955039,3412.7,3412.3,2.1065]
[1735648301092,3.2078,3412.6,3412.4,2.35170218]
[1735648301889,6.65735039,3412.6,3412.4,2.35170218]
[1735648302396,3.44955039,3412.6,3412.5,0.29352]
[1735648302993,6.65735039,3412.6,3412.4,2.35170218]
[1735648303390,3.2078,3412.6,3412.4,2.35170218]
[1735648304389,3.2078,3412.6,3412.5,0.29352]
[1735648305098,3.2078,3412.6,3412.4,2.35170218]
[1735648305394,3.2078,3412.6,3412.4,2.64522218]
[1735648305591,3.50132,3412.6,3412.3,2.7348]
[1735648305793,3.2078,3412.6,3411.9,1.159]
[1735648305987,3.48826,3412.0,3411.9,1.159]
[1735648306187,3.48826,3412.0,3411.4,1.159]
[1735648306188,0.29359,3411.7,3411.4,1.159]
[1735648306398,3.2078,3411.5,3411.4,1.159]
[1735648306904,3.2078,3411.5,3411.4,1.45261]
[1735648307199,1.5573,3411.6,3411.5,0.2936]
[1735648307394,1.5573,3411.6,3411.5,2.64530218]
[1735648307892,3.44955039,3411.8,3411.5,3.74520218]
[1735648308093,2.5147365,3411.8,3411.7,0.29359]
[1735648308395,2.0147365,3411.8,3411.5,3.74520218]
[1735648308602,2.0147365,3411.8,3411.7,40.8]
[1735648308896,2.0147365,3411.8,3411.7,41.0344]
[1735648309099,3.8241165,3411.8,3411.7,41.0344]
[1735648309297,1.5158,3411.8,3411.7,41.0344]
[1735648309502,1.5158,3411.8,3411.7,0.52799]
[1735648311399,1.80938,3411.8,3411.7,0.52799]
[1735648311699,1.5158,3411.8,3411.7,0.52799]
[1735648312900,3.80979734,3411.8,3411.7,0.52799]
[1735648313698,4.10337734,3411.8,3411.7,0.52799]
[1735648314100,1.80938,3411.8,3411.7,0.52799]
[1735648314292,1.5158,3411.8,3411.7,0.52799]
[1735648314493,2.29399734,3411.9,3411.8,0.29358]
[1735648314699,1.68406112,3411.9,3411.8,4.99698436]
[1735648314906,1.18406112,3411.9,3411.8,2.64528218]
[1735648315106,3.2078,3412.1,3412.0,0.29356]
[1735648315302,3.2078,3412.1,3412.0,42.25256]
[1735648315502,3.2078,3412.1,3412.0,41.959]
[1735648315706,3.50135,3412.1,3412.0,42.25256]
[1735648315901,3.50135,3412.1,3412.0,41.959]
[1735648316102,3.50135,3412.1,3412.0,42.25256]
[1735648316305,3.2078,3412.1,3412.0,1.45256]
[1735648316807,3.2078,3412.1,3412.0,42.25256]
[1735648317398,4.59940052,3412.4,3412.0,42.25256]
[1735648317601,4.59940052,3412.4,3412.3,2.64524218]
[1735648317808,7.80720052,3412.6,3412.5,0.29352]
[1735648319507,4.59940052,3412.9,3412.3,2.35170218]
[1735648319712,4.59940052,3412.9,3412.8,0.29349]
[1735648319913,4.59940052,3412.9,3412.8,1.48849]
[1735648320103,4.59940052,3412.9,3412.2,3.2078]
[1735648320104,4.59940052,3412.9,3412.7,1.195]
[1735648320413,4.59940052,3412.9,3412.8,0.29349]
[1735648320712,4.59940052,3412.9,3412.7,1.195]
[1735648320713,12.42610052,3413.0,3412.7,1.195]
[1735648320915,12.71958052,3413.0,3412.7,1.195]
[1735648321110,12.71958052,3413.0,3412.9,0.29348]
[1735648321611,12.42610052,3413.0,3412.9,0.29348]
[1735648322108,11.67241394,3413.0,3412.9,0.29348]
[1735648322707,10.19131394,3413.0,3412.9,0.29348]
[1735648323409,6.98351394,3413.0,3412.9,0.29348]
[1735648323715,3.1378,3413.0,3412.9,0.29348]
[1735648323914,3.1378,3413.0,3412.9,0.52788]
[1735648325518,3.2078,3413.4,3412.9,0.2344]
[1735648325705,3.2078,3413.4,3413.3,0.29345]
[1735648328211,4.59371933,3413.7,3413.1,2.35170218]
[1735648328518,4.09371933,3413.7,3413.6,2.64512218]
[1735648328714,4.09371933,3413.7,3413.6,3.83912218]
[1735648329012,3.59371933,3413.7,3413.6,8.83912218]
[1735648329216,3.59371933,3413.7,3413.6,3.83912218]
[1735648329416,3.18831611,3413.7,3413.6,3.83912218]
[1735648329612,3.2078,3414.2,3413.6,3.54570218]
[1735648329820,3.2078,3414.2,3414.0,2.64509218]
[1735648330409,0.41889279,3414.1,3414.0,43.44509218]
[1735648331421,0.41889279,3414.1,3414.0,40.8]
[1735648331616,0.41889279,3414.1,3413.9,1.194]
[1735648331919,1.78339,3414.0,3413.9,1.194]
[1735648332216,0.29344,3413.4,3413.1,2.35170218]
[1735648332420,2.9787,3413.3,3413.1,1.194]
[1735648332622,3.27215,3413.3,3413.2,1.194]
[1735648332821,2.9787,3413.3,3413.2,1.194]
[1735648333820,2.9787,3413.3,3413.2,1.48746]
[1735648334220,3.2078,3413.4,3413.2,1.194]
[1735648334518,3.2078,3413.8,3413.6,0.29342]
[1735648334711,3.2078,3413.8,3413.6,2.64512218]
[1735648334911,3.2078,3413.8,3413.7,1.194]
[1735648335219,3.2078,3413.8,3413.7,1.48742]
[1735648335416,1.5178,3413.9,3413.7,1.194]
[1735648335618,1.5178,3413.9,3413.8,0.29341]
[1735648336313,1.5178,3413.9,3413.8,41.09341]
[1735648337214,0.41889279,3414.1,3414.0,0.29339]
[1735648337416,0.41889279,3414.1,3414.0,2.64509218]
[1735648338015,0.41889279,3414.1,3414.0,2.87939218]
[1735648338222,0.41889279,3414.1,3414.0,3.11369218]
[1735648340619,0.41889279,3414.1,3414.0,4.30769218]
[1735648342927,0.41889279,3414.1,3414.0,1.6626]
[1735648343923,0.41889279,3414.1,3414.0,0.4686]
[1735648344220,0.41889279,3414.1,3414.0,1.6626]
[1735648344916,0.41889279,3414.1,3414.0,0.4686]
[1735648345124,0.41889279,3414.1,3413.5,1.48743]
[1735648345421,0.41889279,3414.1,3413.3,2.35170218]
[1735648345422,3.2078,3413.8,3413.3,2.35170218]
[1735648345617,2.9355,3413.7,3413.5,0.29343]
[1735648346316,2.9355,3413.7,3413.6,0.29342]
[1735648346517,2.9355,3413.7,3413.6,0.76202]
[1735648346718,2.9355,3413.7,3413.6,3.11372218]